bitfinex-derivatives/quotes_BTCF0:USTF0_20250508
["timestamp","ask_amount","ask_price","bid_price","bid_amount"]
[1746741754402,0.6154,102610.0,102600.0,0.57259665]
[1746741754609,0.810303,102610.0,102600.0,0.57259665]
[1746741755002,1.03586831,102610.0,102600.0,0.57259665]
[1746741755405,0.810303,102610.0,102600.0,0.57259665]
[1746741755605,0.811303,102610.0,102600.0,0.57259665]
[1746741756099,1.03786831,102610.0,102600.0,0.57259665]
[1746741756500,1.17426831,102610.0,102600.0,0.57259665]
[1746741757713,0.948703,102610.0,102600.0,0.57259665]
[1746741758015,0.948703,102610.0,102600.0,0.58783353]
[1746741758207,0.002,102610.0,102600.0,0.91085884]
[1746741758406,0.132,102610.0,102600.0,1.63517884]
[1746741758607,0.707703,102610.0,102600.0,0.70135353]
[1746741759311,0.845303,102610.0,102600.0,0.58783353]
[1746741759611,0.687703,102610.0,102600.0,0.68529353]
[1746741759807,0.687703,102610.0,102600.0,0.58783353]
[1746741760008,0.971303,102610.0,102600.0,0.58783353]
[1746741760214,0.132,102610.0,102600.0,0.58783353]
[1746741760416,0.326903,102610.0,102600.0,0.58783353]
[1746741760717,0.2696,102610.0,102600.0,0.58783353]
[1746741762216,0.132,102610.0,102600.0,0.58783353]
[1746741763011,0.4928,102610.0,102600.0,0.58783353]
[1746741763217,0.326903,102610.0,102600.0,0.58783353]
[1746741763416,0.91326831,102610.0,102600.0,0.70119353]
[1746741763619,1.05676831,102610.0,102600.0,0.70119353]
[1746741764417,0.50106531,102610.0,102600.0,0.70119353]
[1746741764614,0.2755,102610.0,102600.0,0.70119353]
[1746741765315,1.06676831,102610.0,102600.0,0.58783353]
[1746741765520,0.980603,102610.0,102600.0,0.70111353]
[1746741765816,1.19616831,102610.0,102600.0,0.31113353]
[1746741766017,1.19616831,102610.0,102600.0,0.44683353]
[1746741766214,1.19616831,102610.0,102600.0,0.59093353]
[1746741766517,1.31746831,102610.0,102600.0,0.59093353]
[1746741767114,1.091903,102610.0,102600.0,0.59093353]
[1746741767614,1.31746831,102610.0,102600.0,0.59093353]
[1746741768514,0.897,102610.0,102600.0,0.59093353]
[1746741768713,0.142,102610.0,102600.0,0.59093353]
[1746741769319,0.142,102610.0,102600.0,0.95173353]
[1746741769516,0.142,102610.0,102600.0,0.59553898]
[1746741769720,0.142,102610.0,102600.0,0.59093353]
[1746741770410,0.122,102610.0,102600.0,0.95173353]
[1746741770613,0.122,102610.0,102600.0,0.59093353]
[1746741770817,1.09006089,102610.0,102600.0,0.59093353]
[1746741771017,1.23086089,102610.0,102600.0,0.59093353]
[1746741771221,1.23089885,102610.0,102600.0,0.59093353]
[1746741771521,1.087333,102610.0,102600.0,0.59093353]
[1746741772716,1.23332885,102610.0,102600.0,0.59093353]
[1746741774719,0.39083,102610.0,102600.0,0.59093353]
[1746741774920,0.39083,102610.0,102600.0,0.95173353]
[1746741775123,0.89653,102610.0,102600.0,0.59093353]
[1746741775313,1.091433,102610.0,102600.0,0.59093353]
[1746741775512,1.23742885,102610.0,102600.0,0.59093353]
[1746741776227,1.11612885,102610.0,102600.0,0.59093353]
[1746741776627,0.970133,102610.0,102600.0,0.59093353]
[1746741777522,1.23742885,102610.0,102600.0,0.59093353]
[1746741780234,1.23742885,102610.0,102600.0,0.45523353]
[1746741780532,1.25742885,102610.0,102600.0,0.45523353]
[1746741781025,0.194941,102590.0,102580.0,0.00292455]
[1746741781226,0.95303685,102590.0,102580.0,0.14522455]
[1746741781426,0.95303685,102590.0,102580.0,0.34018455]
[1746741781724,0.14,102590.0,102580.0,0.9440362]
[1746741781924,0.13,102590.0,102580.0,0.875671]
[1746741782124,0.94303685,102590.0,102580.0,0.54211178]
[1746741782430,0.88513685,102590.0,102580.0,0.85417598]
[1746741782625,0.739141,102590.0,102580.0,0.85417598]
[1746741782832,0.5442,102590.0,102580.0,0.85417598]
[1746741783025,0.28,102590.0,102580.0,0.85417598]
[1746741783623,0.132,102590.0,102580.0,0.85417598]
[1746741783818,0.2753,102590.0,102580.0,0.85417598]
[1746741784224,0.76193685,102590.0,102580.0,0.49337598]
[1746741784532,0.421,102590.0,102580.0,0.49337598]
[1746741784733,0.132,102590.0,102580.0,0.59085598]
[1746741785030,0.132,102590.0,102580.0,0.70345598]
[1746741785326,0.2533,102590.0,102580.0,0.85417598]
[1746741785529,0.2753,102590.0,102580.0,0.60593598]
[1746741785718,0.4184,102590.0,102580.0,0.60593598]
[1746741785922,0.4184,102590.0,102580.0,0.96673598]
[1746741786123,0.56439585,102590.0,102580.0,0.96673598]
[1746741786323,0.76933685,102590.0,102580.0,0.60589598]
[1746741786518,0.57439585,102590.0,102580.0,0.60589598]
[1746741786829,0.4284,102590.0,102580.0,0.60589598]
[1746741787427,0.2853,102590.0,102580.0,0.60589598]
[1746741787628,0.480241,102590.0,102580.0,0.60589598]
[1746741787928,0.1453,102590.0,102580.0,0.46355598]
[1746741788126,0.490241,102590.0,102580.0,0.60875598]
[1746741788327,0.633341,102590.0,102580.0,0.60875598]
[1746741788631,0.4384,102590.0,102580.0,0.60871598]
[1746741789338,0.4384,102590.0,102580.0,0.96951598]
[1746741790225,0.633341,102590.0,102580.0,0.96951598]
[1746741790420,0.633341,102590.0,102580.0,0.60871598]
[1746741790630,0.633341,102590.0,102580.0,0.96951598]
[1746741791233,0.633341,102590.0,102580.0,0.60871598]
[1746741791425,1.26143685,102590.0,102580.0,0.60863598]
[1746741791625,1.26143685,102590.0,102580.0,0.41367598]
[1746741791833,1.26143685,102590.0,102580.0,0.31763598]
[1746741792230,1.26143685,102590.0,102580.0,0.20527598]
[1746741792428,1.26143685,102590.0,102580.0,0.01031598]
[1746741792633,1.23143685,102590.0,102580.0,0.20527598]
[1746741793428,1.085441,102590.0,102580.0,0.20527598]
[1746741793634,1.23143685,102590.0,102580.0,0.00292455]
[1746741793936,1.23143685,102590.0,102580.0,0.19788455]
[1746741794526,0.965441,102590.0,102580.0,0.19788455]
[1746741794728,1.099441,102590.0,102580.0,0.19788455]
[1746741794930,1.103441,102590.0,102580.0,0.47548455]
[1746741795127,0.9085,102590.0,102580.0,0.47548455]
[1746741795331,0.742641,102590.0,102580.0,0.47548455]
[1746741795530,1.25943685,102590.0,102580.0,0.33708455]
[1746741795726,1.113441,102590.0,102580.0,0.49043677]
[1746741796042,1.115441,102590.0,102580.0,0.49043677]
[1746741796244,1.117871,102590.0,102580.0,0.49043677]
[1746741797743,1.26386685,102590.0,102580.0,0.35203677]
[1746741798336,1.26386685,102590.0,102580.0,0.14212455]
[1746741798637,1.26386685,102590.0,102580.0,0.00292455]
[1746741798842,1.26386685,102590.0,102580.0,0.19788455]
[1746741799839,1.117871,102590.0,102580.0,0.33878455]
[1746741800040,1.117871,102590.0,102580.0,0.48758455]
[1746741800233,1.117871,102590.0,102580.0,0.48785878]
[1746741800843,0.92293,102590.0,102580.0,0.48785878]
[1746741801042,0.27773,102590.0,102580.0,0.63385463]
[1746741801339,0.82509585,102630.0,102580.0,1.87103463]
[1746741801340,0.3608,102630.0,102580.0,1.87103463]
[1746741801540,0.2336,102630.0,102620.0,0.555684]
[1746741801853,0.13,102630.0,102620.0,0.61875585]
[1746741802039,0.15,102630.0,102620.0,1.35003835]
[1746741802233,0.15,102630.0,102620.0,1.54715805]
[1746741802434,0.156,102630.0,102620.0,1.56677613]
[1746741802637,0.156,102630.0,102620.0,1.42078028]
[1746741802830,0.006,102630.0,102620.0,1.56677613]
[1746741803034,0.136,102630.0,102620.0,1.56677613]
[1746741803236,0.0013,102640.0,102630.0,0.194865]
[1746741803437,0.3436,102660.0,102650.0,0.194827]
[1746741803635,0.5097081,102660.0,102650.0,0.61623294]
[1746741803836,1.0138081,102660.0,102650.0,0.43640879]
[1746741804037,1.22980395,102660.0,102650.0,0.03058879]
[1746741804347,1.25980395,102660.0,102650.0,0.22080056]
[1746741804644,0.7530081,102660.0,102650.0,0.20982985]
[1746741804935,0.90200395,102660.0,102650.0,0.21082985]
[1746741805142,0.90200395,102660.0,102650.0,0.34652985]
[1746741805336,0.7560081,102660.0,102650.0,0.34952985]
[1746741805530,0.7560081,102660.0,102650.0,0.50006109]
[1746741805736,0.7530081,102660.0,102650.0,0.49906109]
[1746741806043,1.26480395,102660.0,102650.0,0.03536838]
[1746741806245,1.25480395,102660.0,102650.0,0.03536838]
[1746741806440,1.2570081,102660.0,102650.0,0.03536838]
[1746741806635,1.40300395,102660.0,102650.0,0.02443714]
[1746741806841,1.40300395,102660.0,102650.0,0.2302167]
[1746741807039,1.40300395,102660.0,102650.0,0.23021671]
[1746741807436,0.9222,102660.0,102650.0,0.23021671]
[1746741807742,0.5432,102660.0,102650.0,0.50711671]
[1746741807944,0.68919585,102660.0,102650.0,0.50711671]
[1746741808145,0.88400395,102660.0,102650.0,0.50711671]
[1746741808334,0.68919585,102660.0,102650.0,0.49616414]
[1746741809043,0.5432,102660.0,102650.0,0.49616414]
[1746741809433,1.11480395,102660.0,102650.0,0.16113714]
[1746741809639,1.4107998,102660.0,102650.0,0.13611714]
[1746741809841,1.2637081,102660.0,102650.0,0.13611714]
[1746741810032,0.914,102660.0,102650.0,0.33094414]
[1746741810234,0.4219,102660.0,102650.0,0.61674414]
[1746741810438,0.2786,102660.0,102650.0,0.71415614]
[1746741810945,0.2786,102660.0,102650.0,0.69915329]
[1746741811146,0.2786,102660.0,102650.0,0.60174129]
[1746741811345,0.4237,102660.0,102650.0,0.60174129]
[1746741812343,0.76450395,102660.0,102650.0,0.31582129]
[1746741812536,0.88580395,102660.0,102650.0,0.20426129]
[1746741812846,1.24660395,102660.0,102650.0,0.31582129]
[1746741813045,0.88580395,102660.0,102650.0,0.31582129]
[1746741813545,0.4237,102660.0,102650.0,0.31582129]
[1746741813743,0.145,102660.0,102650.0,0.59892129]
[1746741813946,0.4246,102660.0,102650.0,0.59892129]
[1746741814144,0.145,102660.0,102650.0,1.21755714]
[1746741814349,0.145,102660.0,102650.0,0.71076129]
[1746741814645,0.2763,102660.0,102650.0,0.71076129]
[1746741814846,0.5559,102660.0,102650.0,0.71076129]
[1746741815042,0.2916,102660.0,102650.0,0.71076129]
[1746741815548,0.6077081,102660.0,102650.0,0.71076129]
[1746741815740,0.4129,102660.0,102650.0,0.71076129]
[1746741815941,0.4139,102660.0,102650.0,0.71276129]
[1746741816242,0.96550395,102660.0,102650.0,0.29453429]
[1746741816541,1.23150395,102660.0,102650.0,0.12187429]
[1746741816743,1.36440395,102660.0,102650.0,0.01043429]
[1746741817043,1.00360395,102660.0,102650.0,0.21999877]
[1746741817248,0.5299,102660.0,102650.0,0.21999877]
[1746741817548,0.87070395,102660.0,102650.0,0.21999877]
[1746741818045,0.87070395,102660.0,102650.0,0.36209877]
[1746741818344,1.23150395,102660.0,102650.0,0.21999877]
[1746741818537,0.7247081,102660.0,102650.0,0.36209877]
[1746741818845,0.5399,102660.0,102650.0,0.50789877]
[1746741819049,0.5399,102660.0,102650.0,0.74742129]
[1746741819247,0.4186,102660.0,102650.0,0.74742129]
[1746741819450,0.7794,102660.0,102650.0,0.74742129]
[1746741819641,1.25150395,102660.0,102650.0,0.003]
[1746741819841,1.5459998,102660.0,102650.0,0.003]
[1746741820245,1.5459998,102660.0,102650.0,0.01799493]
[1746741820441,1.40000395,102660.0,102650.0,0.01799493]
[1746741820646,1.5459998,102660.0,102650.0,0.01799493]
[1746741820846,1.5149998,102660.0,102650.0,0.01799493]
[1746741821047,1.5239998,102660.0,102650.0,0.01599493]
[1746741821248,1.6919998,102660.0,102650.0,0.01599493]
[1746741821650,1.6919998,102660.0,102650.0,0.21082193]
[1746741822240,1.5239998,102660.0,102650.0,0.21082193]
[1746741822646,1.37800395,102660.0,102650.0,0.21082193]
[1746741822847,1.25670395,102660.0,102650.0,0.21082193]
[1746741823047,1.0372,102660.0,102650.0,0.21082193]
[1746741823347,0.4166,102660.0,102650.0,0.50012193]
[1746741823746,0.4166,102660.0,102650.0,0.49259852]
[1746741823958,0.6114081,102660.0,102650.0,0.49259852]
[1746741824352,0.6014081,102660.0,102650.0,0.49259852]
[1746741824850,0.8887,102660.0,102650.0,0.49259852]
[1746741825244,0.5279,102660.0,102650.0,0.49259852]
[1746741826044,1.0835081,102660.0,102650.0,0.49259852]
[1746741826246,1.22950395,102660.0,102650.0,0.49259852]
[1746741826440,1.22950395,102660.0,102650.0,0.20329852]
[1746741826645,1.23950395,102660.0,102650.0,0.20329852]
[1746741826866,1.23950395,102660.0,102650.0,0.49049852]
[1746741827052,1.0935081,102660.0,102650.0,0.49049852]
[1746741829155,0.8987,102660.0,102650.0,0.49049852]
[1746741829456,1.0935081,102660.0,102650.0,0.49049852]
[1746741829658,0.8987,102660.0,102650.0,0.49525373]
[1746741829844,0.7327081,102660.0,102650.0,0.49525373]
[1746741830243,1.0935081,102660.0,102650.0,0.51010045]
[1746741831550,1.0935081,102660.0,102650.0,0.49525373]
[1746741831952,0.4079,102660.0,102650.0,0.49525373]
[1746741832152,0.5279,102660.0,102650.0,0.49525373]
[1746741832459,0.4166,102660.0,102650.0,0.49525373]
[1746741832755,0.2766,102660.0,102650.0,0.50632335]
[1746741833056,0.2766,102660.0,102650.0,0.52154387]
[1746741833355,0.4714081,102660.0,102650.0,0.52154387]
[1746741833651,0.6098081,102660.0,102650.0,0.52154387]
[1746741833857,0.416,102660.0,102650.0,0.52454387]
[1746741834254,0.409,102660.0,102650.0,0.52354387]
[1746741834454,0.41,102660.0,102650.0,0.52354387]
[1746741835258,0.41,102660.0,102650.0,0.63442387]
[1746741835453,0.41,102660.0,102650.0,0.62335425]
[1746741835653,0.41,102660.0,102650.0,0.63449645]
[1746741836255,0.2686,102660.0,102650.0,0.7804923]
[1746741836559,0.2686,102660.0,102650.0,0.63449645]
[1746741837561,0.2686,102660.0,102650.0,0.63467369]
[1746741838659,0.1386,102660.0,102650.0,1.14146954]
[1746741838857,0.2786,102660.0,102650.0,1.14146954]
[1746741839457,0.27372732,102660.0,102650.0,0.66978954]
[1746741839659,0.27372732,102660.0,102650.0,0.89138954]
[1746741840061,0.27372732,102660.0,102650.0,1.25218954]
[1746741840261,0.13372732,102660.0,102650.0,0.74539369]
[1746741840459,0.26372732,102660.0,102650.0,0.89138954]
[1746741840658,0.26372732,102660.0,102650.0,1.2408701]
[1746741840962,0.26372732,102660.0,102650.0,0.8802929]
[1746741841156,0.26372732,102660.0,102650.0,1.2410929]
[1746741841354,0.61582732,102660.0,102650.0,0.42875005]
[1746741841661,0.67302317,102660.0,102650.0,0.73425705]
[1746741841871,0.52702732,102660.0,102650.0,0.73425705]
[1746741842364,0.52702732,102660.0,102650.0,1.09505705]
[1746741842662,0.52702732,102660.0,102650.0,0.73425705]
[1746741843063,0.40572732,102660.0,102650.0,0.73425705]
[1746741843258,0.50702732,102660.0,102650.0,1.09505705]
[1746741843658,0.25372732,102660.0,102650.0,1.25212873]
[1746741843959,0.00343,102670.0,102660.0,0.1948081]
[1746741844166,0.0003,102680.0,102670.0,0.1947891]
[1746741844361,0.1503,102680.0,102670.0,0.85283879]
[1746741844564,0.1503,102680.0,102670.0,1.09053479]
[1746741844855,0.233,102700.0,102680.0,0.1947701]
[1746741845061,0.32709428,102700.0,102690.0,0.94730695]
[1746741845366,0.13,102700.0,102690.0,1.41110966]
[1746741845567,0.13,102700.0,102690.0,1.3624898]
[1746741845767,0.1304,102710.0,102700.0,0.1947322]
[1746741846064,0.4024,102710.0,102700.0,0.48634418]
[1746741846265,0.4024,102710.0,102700.0,0.61724418]
[1746741846765,0.4024,102710.0,102700.0,0.60616191]
[1746741847356,0.4024,102710.0,102700.0,0.60605324]
[1746741847557,0.5237,102710.0,102700.0,0.60605324]
[1746741847757,0.5257,102710.0,102700.0,0.73021314]
[1746741848359,0.5257,102710.0,102700.0,0.74868314]
[1746741848762,0.5257,102710.0,102700.0,0.74968314]
[1746741849370,0.5257,102710.0,102700.0,0.74971889]
[1746741850357,0.5257,102710.0,102700.0,0.89571474]
[1746741850863,0.3937,102710.0,102700.0,0.89571474]
[1746741851060,0.3937,102710.0,102700.0,0.895706]
[1746741851874,0.2724,102710.0,102700.0,1.256506]
[1746741852260,0.1423,102710.0,102700.0,1.353874]
[1746741852768,0.1423,102710.0,102700.0,1.393874]
[1746741852959,0.00243,102720.0,102700.0,1.57501478]
[1746741853269,0.14243,102720.0,102710.0,1.09674905]
[1746741853464,0.14243,102720.0,102710.0,1.51757008]
[1746741854470,0.14243,102720.0,102710.0,1.51957008]
[1746741854867,0.14243,102720.0,102710.0,1.51954287]
[1746741855067,0.0003,102750.0,102720.0,0.1946943]
[1746741855269,0.4101,102750.0,102740.0,0.5554564]
[1746741855468,0.2708,102750.0,102740.0,1.23484607]
[1746741855662,0.1403,102750.0,102740.0,2.89217407]
[1746741855973,0.1303,102750.0,102740.0,2.58885022]
[1746741856165,0.2634,102750.0,102740.0,2.58885022]
[1746741856372,0.87643325,102750.0,102740.0,0.4156164]
[1746741856674,0.6723,102750.0,102740.0,0.42926466]
[1746741856890,0.1314,102750.0,102740.0,1.20072469]
[1746741857071,0.2714,102750.0,102740.0,1.33402469]
[1746741857374,0.1341,102760.0,102750.0,0.1946374]
[1746741857673,0.5898185,102760.0,102750.0,0.32930158]
[1746741857875,0.8773,102760.0,102750.0,0.32930158]
[1746741858263,0.8773,102760.0,102750.0,0.45934887]
[1746741858467,0.5165,102760.0,102750.0,0.46034665]
[1746741858673,0.5165,102760.0,102750.0,0.46134665]
[1746741859170,0.1233,102760.0,102750.0,0.9671425]
[1746741859363,0.9029,102760.0,102750.0,0.46764066]
[1746741859564,0.5421,102760.0,102750.0,0.46764066]
[1746741859971,0.4228,102760.0,102750.0,0.46664066]
[1746741860368,0.5441,102760.0,102750.0,0.46664066]
[1746741860569,0.5431,102760.0,102750.0,0.82744066]
[1746741860770,0.5411,102760.0,102750.0,0.47750188]
[1746741860967,0.5411,102760.0,102750.0,0.83830188]
[1746741861374,0.88171435,102760.0,102750.0,0.01815523]
[1746741861570,0.99341435,102760.0,102750.0,0.32279263]
[1746741861776,0.8474185,102760.0,102750.0,0.32279263]
[1746741862074,0.6528,102760.0,102750.0,0.32279263]
[1746741862273,0.6528,102760.0,102750.0,0.68359263]
[1746741862470,0.5315,102760.0,102750.0,0.46259263]
[1746741862668,0.6528,102760.0,102750.0,0.35774186]
[1746741862863,0.6528,102760.0,102750.0,0.46770186]
[1746741863269,0.6548,102760.0,102750.0,0.82850186]
[1746741863470,1.38621435,102760.0,102750.0,0.32790186]
[1746741863670,1.38721435,102760.0,102750.0,0.32790186]
[1746741864265,1.38721435,102760.0,102750.0,0.01815523]
[1746741864266,1.65521435,102760.0,102750.0,0.01815523]
[1746741864471,0.1946374,102750.0,102740.0,0.10992]
[1746741864671,0.29780117,102740.0,102730.0,0.7140553]
[1746741864874,0.63644477,102740.0,102730.0,0.7140553]
[1746741865174,0.80444477,102740.0,102730.0,0.7140553]
[1746741865478,0.81444477,102740.0,102730.0,0.71900093]
[1746741865679,0.81444477,102740.0,102730.0,0.71900085]
[1746741866068,1.36990117,102740.0,102730.0,0.35816085]
[1746741866271,0.84110117,102740.0,102730.0,0.3654409]
[1746741866776,0.98709702,102740.0,102730.0,0.3684409]
[1746741866977,0.79244062,102740.0,102730.0,0.3684409]
[1746741867178,0.81444477,102740.0,102730.0,0.3684409]
[1746741867481,0.585,102740.0,102730.0,0.87923675]
[1746741867783,0.585,102740.0,102730.0,1.00351471]
[1746741868285,0.15,102740.0,102730.0,1.14951056]
[1746741868584,0.15,102740.0,102730.0,1.35041056]
[1746741868882,0.15,102740.0,102730.0,2.85041056]
[1746741869085,0.15,102740.0,102730.0,3.01041056]
[1746741869484,0.15,102740.0,102730.0,3.42631056]
[1746741869883,0.15,102740.0,102730.0,3.54631056]
[1746741870785,0.15,102740.0,102730.0,3.43643056]
[1746741870987,0.15,102740.0,102730.0,3.65607056]
[1746741871685,0.0224741,102740.0,102730.0,3.75340656]
[1746741871901,0.0224741,102740.0,102730.0,3.67449056]
[1746741872390,0.37744477,102740.0,102730.0,1.07707471]
[1746741872582,0.51164477,102740.0,102730.0,1.18679471]
[1746741872973,0.51164477,102740.0,102730.0,1.07654515]
[1746741873380,0.51164477,102740.0,102730.0,1.583341]
[1746741873687,0.51164477,102740.0,102730.0,1.07654515]
[1746741874683,0.51164477,102740.0,102730.0,1.43734515]
[1746741875388,0.51164477,102740.0,102730.0,1.02144515]
[1746741875892,0.51164477,102740.0,102730.0,0.39064515]
[1746741876182,0.81964477,102740.0,102730.0,0.39056515]
[1746741876894,0.81964477,102740.0,102730.0,0.75136515]
[1746741877387,0.65164477,102740.0,102730.0,0.75136515]
[1746741877691,0.65164477,102740.0,102730.0,0.74651535]
[1746741878491,0.65164477,102740.0,102730.0,0.74051535]
[1746741878690,0.65164477,102740.0,102730.0,0.37971535]
[1746741880286,0.65164477,102740.0,102730.0,0.74051535]
[1746741880888,0.65164477,102740.0,102730.0,0.37971535]
[1746741881083,1.35309702,102740.0,102730.0,0.01946]
[1746741881288,1.21309702,102740.0,102730.0,0.01946]
[1746741881485,1.35309702,102740.0,102730.0,0.01946]
[1746741882190,0.1946753,102730.0,102720.0,0.00292056]
[1746741882391,1.20135592,102730.0,102720.0,0.19761486]
[1746741882591,1.29870392,102730.0,102720.0,0.19761486]
[1746741882985,1.30596332,102730.0,102720.0,0.00292056]
[1746741883197,1.47760689,102730.0,102720.0,0.00292056]
[1746741883491,0.1946943,102720.0,102710.0,0.5405507]
[1746741883688,1.20737492,102720.0,102710.0,0.3458375]
[1746741883888,1.45104615,102720.0,102710.0,0.26215273]
[1746741884092,1.515042,102720.0,102710.0,0.26215273]
[1746741884392,1.36904615,102720.0,102710.0,0.45686593]
[1746741884890,1.515042,102720.0,102710.0,0.26515273]
[1746741885295,1.515042,102720.0,102710.0,0.26815273]
[1746741885486,1.765042,102720.0,102710.0,0.006]
[1746741885687,0.1947322,102700.0,102690.0,0.2443952]
[1746741885883,1.21232805,102700.0,102690.0,0.0009738]
[1746741886089,0.1947511,102690.0,102680.0,0.00292156]
[1746741886295,1.2497428,102690.0,102680.0,0.00292156]
[1746741886486,0.34078495,102670.0,102660.0,0.4448357]
[1746741886686,1.20238495,102670.0,102660.0,0.4448357]
[1746741886889,1.27978895,102670.0,102660.0,0.4448357]
[1746741887093,1.70998895,102670.0,102660.0,0.4448357]
[1746741887590,1.72399953,102670.0,102660.0,0.4448357]
[1746741888500,1.57800368,102670.0,102660.0,0.4468357]
[1746741888898,1.72399953,102670.0,102660.0,0.00097408]
[1746741889199,1.72599953,102670.0,102660.0,0.19678218]
[1746741889399,1.2938,102670.0,102660.0,0.19678218]
[1746741889591,1.4885891,102670.0,102660.0,0.19678218]
[1746741889787,1.63458495,102670.0,102660.0,0.00197408]
[1746741890000,1.63658495,102670.0,102660.0,0.00197408]
[1746741890200,1.63658495,102670.0,102660.0,0.19678218]
[1746741890600,1.65045312,102670.0,102660.0,0.19678218]
[1746741890796,1.65245312,102670.0,102660.0,0.00197408]
[1746741891404,1.74985712,102670.0,102660.0,0.00197408]
[1746741891699,1.74985712,102670.0,102660.0,0.19678218]
[1746741892301,1.74985712,102670.0,102660.0,0.00197408]
[1746741894107,1.75703217,102670.0,102660.0,0.00197408]
[1746741894899,0.1948081,102660.0,102650.0,0.00292255]
[1746741895093,1.3970998,102660.0,102650.0,0.00292255]
[1746741895302,0.194846,102640.0,102630.0,0.00097436]
[1746741895597,1.21244185,102640.0,102630.0,0.00097436]
[1746741895793,1.44277385,102640.0,102630.0,0.00097436]
[1746741895992,1.70937385,102640.0,102630.0,0.00097436]
[1746741896201,1.87737385,102640.0,102630.0,0.00097436]
[1746741897000,1.613946,102640.0,102630.0,0.19583936]
[1746741897201,1.465946,102640.0,102630.0,0.33493936]
[1746741897401,1.465946,102640.0,102630.0,0.47013936]
[1746741897603,1.466946,102640.0,102630.0,0.47413936]
[1746741898003,1.334046,102640.0,102630.0,0.47413936]
[1746741898402,0.4918,102640.0,102630.0,0.62013521]
[1746741898708,0.121,102640.0,102630.0,0.75053521]
[1746741898907,0.121,102640.0,102630.0,0.74753521]
[1746741899402,0.121,102640.0,102630.0,1.35833521]
[1746741899612,0.315846,102640.0,102630.0,0.96233936]
[1746741900311,0.121,102640.0,102630.0,0.96233936]
[1746741900501,0.315846,102640.0,102630.0,0.60153936]
[1746741900696,0.315846,102640.0,102630.0,0.40667436]
[1746741900906,0.82264185,102640.0,102630.0,0.40667436]
[1746741901096,0.72884185,102640.0,102630.0,0.40667436]
[1746741901302,1.08964185,102640.0,102630.0,0.40667436]
[1746741901504,1.08964185,102640.0,102630.0,0.27627436]
[1746741901806,0.943646,102640.0,102630.0,0.47113936]
[1746741902010,1.08964185,102640.0,102630.0,0.27627436]
[1746741902212,1.08964185,102640.0,102630.0,0.47113936]
[1746741902514,0.943646,102640.0,102630.0,0.47113936]
[1746741902809,1.08964185,102640.0,102630.0,0.33593936]
[1746741903011,0.943646,102640.0,102630.0,0.33593936]
[1746741903212,0.953646,102640.0,102630.0,0.46633936]
[1746741903404,0.592846,102640.0,102630.0,0.59523936]
[1746741903905,0.2607,102640.0,102630.0,0.59523936]
[1746741904105,0.121,102640.0,102630.0,1.10203521]
[1746741905314,0.5608,102660.0,102650.0,0.194827]
[1746741905615,0.4208,102660.0,102650.0,0.194827]
[1746741905812,0.6156081,102660.0,102650.0,0.194827]
[1746741906014,0.6156081,102660.0,102650.0,0.466427]
[1746741906403,0.76160395,102660.0,102650.0,0.2716]
[1746741906710,1.12250395,102660.0,102650.0,0.467427]
[1746741906911,0.9805081,102660.0,102650.0,0.468427]
[1746741907106,0.9795081,102660.0,102650.0,0.467427]
[1746741907302,0.652,102660.0,102650.0,0.467427]
[1746741907615,0.8428081,102660.0,102650.0,0.466427]
[1746741907812,0.004,102660.0,102650.0,0.61342285]
[1746741908008,0.144,102660.0,102650.0,0.97422285]
[1746741908215,0.144,102660.0,102650.0,0.61342285]
[1746741908515,0.144,102660.0,102650.0,0.97422285]
[1746741908704,0.144,102660.0,102650.0,1.10692285]
[1746741909718,0.144,102660.0,102650.0,1.15226499]
[1746741910505,0.13310337,102660.0,102650.0,1.49967699]
[1746741910702,0.2203,102680.0,102670.0,0.1947891]
[1746741910908,0.0203,102680.0,102670.0,0.85588709]
[1746741911110,0.0203,102680.0,102670.0,1.10276709]
[1746741911415,0.0203,102680.0,102670.0,1.23016709]
[1746741912612,0.0203,102680.0,102670.0,0.69158759]
[1746741913207,0.0203,102680.0,102670.0,1.05338759]
[1746741913912,0.1203,102680.0,102670.0,1.88932158]
[1746741914105,0.085333,102680.0,102670.0,1.88932158]
[1746741914311,0.061,102700.0,102690.0,0.1947511]
[1746741914511,0.151,102700.0,102690.0,0.74688909]
[1746741914713,0.151,102700.0,102690.0,0.87658909]
[1746741914918,0.151,102700.0,102690.0,1.13588909]
[1746741915618,0.151,102700.0,102690.0,1.19588909]
[1746741915819,0.151,102700.0,102690.0,1.42588909]
[1746741916414,0.154,102700.0,102690.0,1.42588909]
[1746741916717,0.158,102700.0,102690.0,1.42688909]
[1746741917116,0.145,102700.0,102690.0,1.79606508]
[1746741917313,0.1095044,102700.0,102690.0,2.48196508]
[1746741917616,0.0003,102710.0,102700.0,0.1947322]
[1746741917824,0.1303,102710.0,102700.0,1.23461019]
[1746741918013,0.1303,102710.0,102700.0,2.24787819]
[1746741918315,0.36353,102750.0,102740.0,0.1946564]
[1746741918514,0.14183,102750.0,102740.0,0.3034164]
[1746741918714,0.3364674,102750.0,102740.0,0.3034164]
[1746741918914,0.5948674,102750.0,102740.0,0.5731164]
[1746741919216,0.5948674,102750.0,102740.0,0.9339164]
[1746741919619,0.5924374,102750.0,102740.0,0.9339164]
[1746741920015,0.5974374,102750.0,102740.0,0.9349164]
[1746741920515,0.6024374,102750.0,102740.0,0.9359164]
[1746741920818,0.1403,102750.0,102740.0,0.9359164]
[1746741921008,0.1403,102750.0,102740.0,1.48805439]
[1746741922721,0.1323,102750.0,102740.0,1.48605439]
[1746741923221,0.1323,102750.0,102740.0,1.49965993]
[1746741923420,0.1313,102750.0,102740.0,1.60873993]
[1746741923622,0.1303,102750.0,102740.0,1.61273993]
[1746741923812,0.1303,102750.0,102740.0,1.61573993]
[1746741924016,0.13273,102750.0,102740.0,1.61573993]
[1746741924623,0.13273,102750.0,102740.0,1.80573993]
[1746741925328,0.13273,102750.0,102740.0,1.61440194]
[1746741925515,0.13273,102750.0,102740.0,1.80573993]
[1746741926523,0.13273,102750.0,102740.0,1.82573993]
[1746741927028,0.26053,102750.0,102740.0,2.02573993]
[1746741928422,0.13053,102750.0,102740.0,1.20656194]
[1746741928627,0.26053,102750.0,102740.0,1.42348194]
[1746741928828,0.39033,102750.0,102740.0,1.42348194]
[1746741929124,0.13053,102750.0,102740.0,1.81481993]
[1746741929329,0.12273,102750.0,102740.0,1.94741993]
[1746741929625,0.12273,102750.0,102740.0,2.04474793]
[1746741929823,0.12273,102750.0,102740.0,2.23474793]
[1746741930012,0.12273,102750.0,102740.0,2.23074793]
[1746741930218,0.0755578,102750.0,102740.0,2.23374793]